fUST/lending_fUST_20240227
["ID","MTS","AMOUNT","RATE_DAILY","PERIOD"]
[315432113,1709031045530,-500.0,0.00020075,2]
[315432115,1709031045539,-500.0,0.00020075,2]
[315432117,1709031045548,-483.35573901,0.00020075,2]
[315432118,1709031045558,-500.0,0.00020075,2]
[315432120,1709031045567,-500.0,0.00020075,2]
[315432122,1709031045577,-500.0,0.00020075,2]
[315432123,1709031045586,-500.0,0.00020075,2]
[315432125,1709031045596,-500.0,0.00020075,2]
[315432127,1709031045606,-500.0,0.00020075,2]
[315432129,1709031045616,-500.0,0.00020075,2]
[315432131,1709031045626,-500.0,0.00020075,2]
[315432133,1709031045635,-500.0,0.00020075,2]
[315432135,1709031045646,-500.0,0.00020075,2]
[315432137,1709031045656,-233.06091591,0.00020075,2]
[315432139,1709031045666,-500.0,0.00020075,2]
[315432142,1709031045675,-476.85954565,0.00020075,2]
[315432144,1709031045684,-326.32993225,0.00020075,2]
[315432146,1709031045694,-500.0,0.00020075,2]
[315432148,1709031045704,-500.0,0.00020075,2]
[315432150,1709031045714,-500.0,0.00020075,2]
[315432151,1709031045723,-500.0,0.00020075,2]
[315432152,1709031045733,-500.0,0.00020075,2]
[315432153,1709031045744,-500.0,0.00020075,2]
[315432154,1709031045755,-500.0,0.00020075,2]
[315432155,1709031045764,-500.0,0.00020075,2]
[315432156,1709031045774,-500.0,0.00020075,2]
[315432157,1709031045783,-500.0,0.00020075,2]
[315432158,1709031045793,-500.0,0.00020075,2]
[315432159,1709031045802,-500.0,0.00020075,2]
[315432160,1709031045811,-500.0,0.00020075,2]
[315432161,1709031045822,-500.0,0.00020075,2]
[315432162,1709031045832,-500.0,0.00020075,2]
[315432163,1709031045841,-500.0,0.00020075,2]
[315432164,1709031045851,-560.17217773,0.00020075,2]
[315432166,1709031045861,-166.666666,0.00020076,2]
[315432167,1709031045871,-96072.54768136,0.00020078,2]
[315432169,1709031045881,-500.0,0.00020116,2]
[315432170,1709031045890,-306.0,0.00020192,2]
[315432171,1709031045899,-1794.18371933,0.00020212,2]
[315432173,1709031045908,-500.0,0.00020231,2]
[315432175,1709031045917,-500.0,0.00020273,2]
[315432176,1709031045926,-809.97,0.00020273,2]
[315432177,1709031045936,-1268.67,0.00020273,2]
[315432179,1709031045946,-500.0,0.00020273,2]
[315432180,1709031045956,-500.0,0.00020273,2]
[315432182,1709031045966,-500.0,0.00020273,2]
[315432184,1709031045977,-391.84467758,0.00020273,2]
[315432186,1709031045990,-500.0,0.00020273,2]
[315432188,1709031046001,-500.0,0.00020273,2]
[315432190,1709031046011,-749.07,0.00020273,2]
[315432192,1709031046021,-500.0,0.00020273,2]
[315432194,1709031046032,-500.0,0.00020273,2]
[315432195,1709031046042,-282.98479173,0.00020273,2]
[315432196,1709031046052,-500.0,0.00020273,2]
[315432197,1709031046062,-500.0,0.00020273,2]
[315432198,1709031046072,-1271.86,0.00020273,2]
[315432199,1709031046081,-500.0,0.00020273,2]
[315432200,1709031046092,-500.0,0.00020273,2]
[315432201,1709031046102,-500.0,0.00020273,2]
[315432202,1709031046111,-500.0,0.00020273,2]
[315432205,1709031046204,-260.25765248,0.00020273,2]
[315432207,1709031046214,-1536.97,0.00020273,2]
[315432209,1709031046223,-1519.07,0.00020273,2]
[315432210,1709031046233,-1414.54,0.00020273,2]
[315432212,1709031046242,-500.0,0.00020273,2]
[315432214,1709031046254,-696.69,0.00020273,2]
[315432216,1709031046263,-500.0,0.00020273,2]
[315432218,1709031046272,-500.0,0.00020273,2]
[315432220,1709031046281,-560.08,0.00020273,2]
[315432223,1709031046295,-712.06,0.00020273,2]
[315432225,1709031046304,-907.1,0.00020273,2]
[315432227,1709031046313,-500.0,0.00020273,2]
[315432229,1709031046322,-500.0,0.00020273,2]
[315432231,1709031046331,-728.61,0.00020273,2]
[315432233,1709031046341,-500.0,0.00020273,2]
[315432235,1709031046350,-1145.82,0.00020273,2]
[315432236,1709031046359,-2482.48,0.00020273,2]
[315432237,1709031046369,-767.04,0.00020273,2]
[315432238,1709031046379,-398.21029264,0.00020273,2]
[315432239,1709031046390,-500.0,0.00020273,2]
[315432240,1709031046399,-1907.83,0.00020273,2]
[315432241,1709031046409,-1799.8,0.00020273,2]
[315432242,1709031046418,-598.39,0.00020273,2]
[315432243,1709031046428,-500.0,0.00020273,2]
[315432244,1709031046437,-1946.01,0.00020273,2]
[315432245,1709031046446,-1862.12,0.00020273,2]
[315432246,1709031046456,-174.56092939,0.00020273,2]
[315432247,1709031046465,-643.32,0.00020273,2]
[315432248,1709031046475,-10079.62,0.00020273,2]
[315432249,1709031046486,-559.21,0.00020273,2]
[315432250,1709031046495,-500.0,0.00020273,2]
[315432251,1709031046505,-4134.42,0.00020273,2]
[315432252,1709031046515,-158.76788744,0.00020273,2]
[315432254,1709031046524,-500.0,0.00020273,2]
[315432256,1709031046534,-19597.57,0.00020273,2]
[315432258,1709031046543,-500.0,0.00020273,2]
[315432260,1709031046552,-4975.62,0.00020273,2]
[315432261,1709031046561,-500.0,0.00020273,2]
[315432263,1709031046570,-1690.48,0.00020273,2]
[315432265,1709031046580,-500.0,0.00020273,2]
[315432267,1709031046590,-1304.09,0.00020273,2]
[315432269,1709031046599,-449.86323283,0.00020273,2]
[315432270,1709031046608,-6748.67,0.00020273,2]
[315432271,1709031046617,-3239.46,0.00020273,2]
[315432272,1709031046626,-593.26,0.00020273,2]
[315432273,1709031046635,-500.0,0.00020273,2]
[315432274,1709031046646,-4614.53,0.00020273,2]
[315432275,1709031046656,-2407.33,0.00020273,2]
[315432276,1709031046665,-1146.61,0.00020273,2]
[315432277,1709031046675,-500.0,0.00020273,2]
[315432278,1709031046684,-500.0,0.00020273,2]
[315432279,1709031046693,-500.0,0.00020273,2]
[315432280,1709031046703,-2404.01,0.00020273,2]
[315432281,1709031046713,-18318.51,0.00020273,2]
[315432282,1709031046722,-3161.62,0.00020273,2]
[315432283,1709031046732,-3952.58,0.00020273,2]
[315432284,1709031046742,-500.0,0.00020273,2]
[315432285,1709031046751,-868.04,0.00020273,2]
[315432286,1709031046760,-500.0,0.00020347,2]
[315432287,1709031046770,-1794.18371933,0.00020384,2]
[315432288,1709031046779,-959.01542021,0.0002042,2]
[315432289,1709031046788,-500.0,0.00020463,2]
[315432290,1709031046798,-50000.0,0.0002052,4]
[315432291,1709031046808,-55844.09690462,0.0002052,4]
[315432292,1709031046817,-3108.48207749,0.0002052,3]
[315432305,1709031046957,-386.88753111,0.0002052,3]
[315432307,1709031046969,-4455.39112505,0.0002052,3]
[315432309,1709031046979,-392.18103277,0.0002052,5]
[315432310,1709031046992,-4607.81896723,0.0002052,5]
[315432311,1709031047001,-3631.71461229,0.0002052,5]
[315432312,1709031047013,-1368.28538771,0.0002052,5]
[315432313,1709031047022,-4749.47684994,0.0002052,4]
[315432314,1709031047032,-166.666666,0.00020524,2]
[315432315,1709031047042,-1935.27907304,0.00020537,4]
[315432316,1709031047061,-518.61,0.00020537,4]
[315432317,1709031047073,-5655.18551019,0.00020537,4]
[315432318,1709031047242,-651.68,0.00020537,4]
[315432320,1709031258716,156.0715124,0.000176,2]
[315432321,1709031294397,155.16913436,0.000176,2]
[315432322,1709031314421,155.16913436,0.000176,2]
[315432323,1709031336410,160.13978128,0.000176,2]
[315432324,1709031748846,152.71571477,0.00022,30]
[315432325,1709031894123,611.121437,0.00017903,2]
[315432378,1709032232263,-183.171319,0.00018108,2]
[315432380,1709032232273,-2717.87041396,0.00018335,2]
[315432382,1709032232283,-10640.9154312,0.00019168,3]
[315432384,1709032232296,-2825.0,0.00019168,3]
[315432387,1709032232308,-1716.52419962,0.00019168,3]
[315432628,1709032238160,-80198.50954726,0.00019168,3]
[315432629,1709032238169,-1879.04617708,0.00019176,2]
[315432630,1709032238179,-500.0,0.00019177,2]
[315432631,1709032238188,-496.66696298,0.00019178,2]
[315432632,1709032238197,-500.0,0.00019178,2]
[315432633,1709032238208,-500.0,0.00019178,2]
[315432634,1709032238216,-500.0,0.00019178,2]
[315432635,1709032238225,-500.0,0.00019178,2]
[315432636,1709032238243,-500.0,0.00019178,2]
[315432637,1709032238255,-500.0,0.00019178,2]
[315432638,1709032238265,-500.0,0.00019178,2]
[315432639,1709032238274,-500.0,0.00019178,2]
[315432640,1709032238283,-501.62472493,0.00019178,2]
[315432641,1709032238293,-500.0,0.00019178,2]
[315432642,1709032238302,-500.0,0.00019178,2]
[315432643,1709032238312,-500.0,0.00019178,2]
[315432644,1709032238471,-500.0,0.00019178,2]
[315432645,1709032238480,-221.31754441,0.00019178,2]
[315432646,1709032238489,-500.0,0.00019178,2]
[315432647,1709032238498,-500.0,0.00019178,2]
[315432648,1709032238507,-500.0,0.00019178,2]
[315432649,1709032238517,-500.0,0.00019178,2]
[315432650,1709032238526,-500.0,0.00019178,2]
[315432651,1709032238535,-500.0,0.00019178,2]
[315432652,1709032238545,-500.0,0.00019178,2]
[315432653,1709032238553,-334.88546012,0.00019178,2]
[315432654,1709032238563,-401.70891154,0.00019178,2]
[315432655,1709032238572,-500.47393803,0.00019178,2]
[315432656,1709032238582,-583.2051723,0.00019178,2]
[315432657,1709032238592,-500.0,0.00019178,2]
[315432658,1709032238605,-500.0,0.00019178,2]
[315432659,1709032238614,-500.0,0.00019178,2]
[315432660,1709032238624,-500.0,0.00019178,2]
[315432661,1709032238635,-500.0,0.00019178,2]
[315432662,1709032238644,-500.0,0.00019178,2]
[315432663,1709032238654,-500.0,0.00019178,2]
[315432664,1709032238663,-501.98121851,0.00019178,2]
[315432665,1709032238674,-500.0,0.00019178,2]
[315432666,1709032238683,-500.0,0.00019178,2]
[315432667,1709032238692,-1165.87,0.00019178,2]
[315432668,1709032238701,-593.2402925,0.00019178,2]
[315432669,1709032238710,-500.0,0.00019178,2]
[315432670,1709032238720,-236.25628183,0.00019178,2]
[315432671,1709032238729,-500.0,0.00019178,2]
[315432672,1709032238738,-500.0,0.00019178,2]
[315432673,1709032238748,-374.99373444,0.00019178,2]
[315432674,1709032238756,-164.67083156,0.00019178,2]
[315432675,1709032238767,-500.0,0.00019178,2]
[315432676,1709032238776,-500.80286778,0.00019178,2]
[315432677,1709032238785,-451.77238634,0.00019178,2]
[315432678,1709032238794,-500.0,0.00019178,2]
[315432679,1709032238803,-500.0,0.00019178,2]
[315432680,1709032238812,-500.0,0.00019178,2]
[315432681,1709032238821,-500.0,0.00019178,2]
[315432682,1709032238830,-500.0,0.00019178,2]
[315432683,1709032238839,-500.0,0.00019178,2]
[315432684,1709032238849,-500.0,0.00019178,2]
[315432685,1709032238858,-500.0,0.00019178,2]
[315432686,1709032238867,-501.95643743,0.00019178,2]
[315432687,1709032238876,-500.0,0.00019178,2]
[315432688,1709032238885,-500.0,0.00019178,2]
[315432689,1709032238894,-500.0,0.00019178,2]
[315432690,1709032238902,-500.0,0.00019178,2]
[315432691,1709032238911,-500.0,0.00019178,2]
[315432692,1709032238920,-501.378692,0.00019178,2]
[315432693,1709032238929,-500.0,0.00019178,2]
[315432694,1709032238938,-1355.6,0.00019178,2]
[315432695,1709032238948,-500.0,0.00019178,2]
[315432696,1709032238957,-500.0,0.00019178,2]
[315432697,1709032238966,-500.0,0.00019178,2]
[315432698,1709032238975,-667.66,0.00019178,2]
[315432699,1709032238984,-500.0,0.00019178,2]
[315432700,1709032238994,-500.0,0.00019178,2]
[315432701,1709032239003,-211.14111785,0.00019178,2]
[315432702,1709032239012,-500.0,0.00019178,2]
[315432703,1709032239022,-500.0,0.00019178,2]
[315432704,1709032239031,-500.0,0.00019178,2]
[315432705,1709032239041,-500.0,0.00019178,2]
[315432706,1709032239053,-500.0,0.00019178,2]
[315432707,1709032239062,-500.0,0.00019178,2]
[315432708,1709032239071,-536.74,0.00019178,2]
[315432709,1709032239080,-749.07,0.00019178,2]
[315432710,1709032239090,-500.0,0.00019178,2]
[315432711,1709032239099,-500.0,0.00019178,2]
[315432712,1709032239109,-502.22775455,0.00019178,2]
[315432713,1709032239118,-500.0,0.00019178,2]
[315432714,1709032239127,-500.0,0.00019178,2]
[315432715,1709032239137,-502.13809935,0.00019178,2]
[315432716,1709032239146,-500.0,0.00019178,2]
[315432717,1709032239155,-500.0,0.00019178,2]
[315432718,1709032239164,-500.0,0.00019178,2]
[315432719,1709032239173,-500.0,0.00019178,2]
[315432720,1709032239183,-500.0,0.00019178,2]
[315432721,1709032239193,-162.83762222,0.00019178,2]
[315432722,1709032239202,-500.0,0.00019178,2]
[315432723,1709032239211,-616.51,0.00019178,2]
[315432724,1709032239221,-500.0,0.00019178,2]
[315432725,1709032239231,-535.91,0.00019178,2]
[315432726,1709032239240,-500.0,0.00019178,2]
[315432727,1709032239250,-500.0,0.00019178,2]
[315432728,1709032239260,-500.0,0.00019178,2]
[315432729,1709032239269,-500.0,0.00019178,2]
[315432730,1709032239279,-500.0,0.00019178,2]
[315432731,1709032239288,-1536.97,0.00019178,2]
[315432732,1709032239299,-500.0,0.00019178,2]
[315432733,1709032239308,-500.0,0.00019178,2]
[315432734,1709032239318,-632.27431855,0.00019178,2]
[315432735,1709032239327,-500.0,0.00019178,2]
[315432736,1709032239336,-500.0,0.00019178,2]
[315432737,1709032239345,-500.0,0.00019178,2]
[315432738,1709032239354,-500.0,0.00019178,2]
[315432739,1709032239364,-1519.07,0.00019178,2]
[315432740,1709032239373,-500.0,0.00019178,2]
[315432741,1709032239383,-500.0,0.00019178,2]
[315432742,1709032239393,-500.0,0.00019178,2]
[315432743,1709032239403,-500.0,0.00019178,2]
[315432744,1709032239412,-500.0,0.00019178,2]
[315432745,1709032239421,-155.0,0.00019178,2]
[315432746,1709032239430,-500.0,0.00019178,2]
[315432747,1709032239439,-500.0,0.00019178,2]
[315432748,1709032239448,-500.0,0.00019178,2]
[315432749,1709032239458,-500.0,0.00019178,2]
[315432750,1709032239467,-500.0,0.00019178,2]
[315432751,1709032239476,-500.0,0.00019178,2]
[315432752,1709032239485,-500.0,0.00019178,2]
[315432753,1709032239494,-500.18571217,0.00019178,2]
[315432754,1709032239504,-500.0,0.00019178,2]
[315432755,1709032239513,-500.20544472,0.00019178,2]
[315432756,1709032239522,-500.0,0.00019178,2]
[315432757,1709032239532,-282.6196593,0.00019178,2]
[315432758,1709032239541,-292.53384056,0.00019178,2]
[315432759,1709032239551,-907.1,0.00019178,2]
[315432760,1709032239560,-500.0,0.00019178,2]
[315432761,1709032239569,-220.04820398,0.00019178,2]
[315432762,1709032239578,-500.0,0.00019178,2]
[315432763,1709032239590,-500.0,0.00019178,2]
[315432764,1709032239599,-500.0,0.00019178,2]
[315432765,1709032239608,-509.88522936,0.00019178,2]
[315432766,1709032239618,-500.0,0.00019178,2]
[315432767,1709032239627,-500.0,0.00019178,2]
[315432768,1709032239636,-712.06,0.00019178,2]
[315432769,1709032239645,-500.0,0.00019178,2]
[315432770,1709032239654,-500.0,0.00019178,2]
[315432771,1709032239663,-500.27404044,0.00019178,2]
[315432772,1709032239673,-500.48331824,0.00019178,2]
[315432773,1709032239682,-500.0,0.00019178,2]
[315432774,1709032239691,-501.22858911,0.00019178,2]
[315432775,1709032239700,-809.97,0.00019178,2]
[315432776,1709032239710,-500.0,0.00019178,2]
[315432777,1709032239719,-500.96626582,0.00019178,2]
[315432778,1709032239728,-500.0,0.00019178,2]
[315432779,1709032239737,-500.0,0.00019178,2]
[315432780,1709032239746,-767.04,0.00019178,2]
[315432781,1709032239755,-509.27132953,0.00019178,2]
[315432782,1709032239765,-2482.48,0.00019178,2]
[315432783,1709032239775,-1799.8,0.00019178,2]
[315432784,1709032239784,-500.0,0.00019178,2]
[315432785,1709032239793,-1268.67,0.00019178,2]
[315432786,1709032239804,-500.0,0.00019178,2]
[315432787,1709032239813,-1907.83,0.00019178,2]
[315432788,1709032239822,-500.67580525,0.00019178,2]
[315432789,1709032239831,-500.0,0.00019178,2]
[315432790,1709032239840,-503.20835864,0.00019178,2]
[315432791,1709032239849,-500.0,0.00019178,2]
[315432792,1709032239858,-500.0,0.00019178,2]
[315432793,1709032239867,-500.0,0.00019178,2]
[315432794,1709032239877,-500.0,0.00019178,2]
[315432795,1709032239886,-500.0,0.00019178,2]
[315432796,1709032239895,-10079.62,0.00019178,2]
[315432797,1709032239904,-598.39,0.00019178,2]
[315432798,1709032239914,-500.0,0.00019178,2]
[315432799,1709032239923,-1862.12,0.00019178,2]
[315432800,1709032239932,-520.49261535,0.00019178,2]
[315432801,1709032239941,-500.0,0.00019178,2]
[315432802,1709032239950,-544.99348939,0.00019178,2]
[315432803,1709032239959,-4134.42,0.00019178,2]
[315432804,1709032239968,-1946.01,0.00019178,2]
[315432805,1709032239977,-500.0,0.00019178,2]
[315432806,1709032239986,-443.10422866,0.00019178,2]
[315432807,1709032239995,-549.59387891,0.00019178,2]
[315432808,1709032240003,-500.0,0.00019178,2]
[315432809,1709032240013,-500.0,0.00019178,2]
[315432810,1709032240022,-500.84804991,0.00019178,2]
[315432811,1709032240031,-500.0,0.00019178,2]
[315432812,1709032240040,-500.0,0.00019178,2]
[315432813,1709032240050,-500.0,0.00019178,2]
[315432814,1709032240060,-500.0,0.00019178,2]
[315432815,1709032240069,-19597.57,0.00019178,2]
[315432816,1709032240078,-500.0,0.00019178,2]
[315432817,1709032240087,-500.0,0.00019178,2]
[315432818,1709032240096,-500.0,0.00019178,2]
[315432819,1709032240105,-500.0,0.00019178,2]
[315432820,1709032240114,-500.0,0.00019178,2]
[315432821,1709032240123,-500.0,0.00019178,2]
[315432822,1709032240132,-506.51167982,0.00019178,2]
[315432823,1709032240142,-4975.62,0.00019178,2]
[315432824,1709032240151,-500.0,0.00019178,2]
[315432825,1709032240161,-500.0,0.00019178,2]
[315432826,1709032240170,-500.0,0.00019178,2]
[315432827,1709032240179,-618.23,0.00019178,2]
[315432828,1709032240188,-500.0,0.00019178,2]
[315432829,1709032240197,-1690.48,0.00019178,2]
[315432830,1709032240207,-625.25473972,0.00019178,2]
[315432831,1709032240217,-500.0,0.00019178,2]
[315432832,1709032240226,-500.0,0.00019178,2]
[315432833,1709032240235,-500.0,0.00019178,2]
[315432834,1709032240244,-500.65277545,0.00019178,2]
[315432835,1709032240253,-821.94,0.00019178,2]
[315432836,1709032240263,-821.94,0.00019178,2]
[315432837,1709032240272,-821.94,0.00019178,2]
[315432838,1709032240281,-500.0,0.00019178,2]
[315432839,1709032240291,-500.0,0.00019178,2]
[315432841,1709032240301,-500.0,0.00019178,2]
[315432843,1709032240310,-500.0,0.00019178,2]
[315432844,1709032240320,-500.0,0.00019178,2]
[315432845,1709032240328,-500.0,0.00019178,2]
[315432846,1709032240338,-500.0,0.00019178,2]
[315432847,1709032240347,-500.0,0.00019178,2]
[315432848,1709032240356,-500.0,0.00019178,2]
[315432849,1709032240366,-500.0,0.00019178,2]
[315432850,1709032240376,-500.0,0.00019178,2]
[315432852,1709032240385,-182.29292872,0.00019178,2]
[315432854,1709032240393,-500.0,0.00019178,2]
[315432855,1709032240403,-593.26,0.00019178,2]
[315432856,1709032240412,-500.0,0.00019178,2]
[315432857,1709032240421,-1304.09,0.00019178,2]
[315432858,1709032240429,-500.0,0.00019178,2]
[315432859,1709032240438,-500.11571016,0.00019178,2]
[315432860,1709032240447,-500.0,0.00019178,2]
[315432861,1709032240456,-209.21007188,0.00019178,2]
[315432862,1709032240465,-500.0,0.00019178,2]
[315432864,1709032240474,-2407.33,0.00019178,2]
[315432865,1709032240483,-3239.46,0.00019178,2]
[315432867,1709032240492,-500.0,0.00019178,2]
[315432869,1709032240502,-500.0,0.00019178,2]
[315432870,1709032240511,-524.3336593,0.00019178,2]
[315432871,1709032240520,-6748.67,0.00019178,2]
[315432873,1709032240531,-1434.08,0.00019178,2]
[315432874,1709032240540,-500.0,0.00019178,2]
[315432876,1709032240550,-18318.51,0.00019178,2]
[315432878,1709032240559,-500.0,0.00019178,2]
[315432879,1709032240568,-320.15175574,0.00019178,2]
[315432880,1709032240578,-500.0,0.00019178,2]
[315432881,1709032240587,-500.0,0.00019178,2]
[315432882,1709032240599,-4614.53,0.00019178,2]
[315432883,1709032240608,-868.04,0.00019178,2]
[315432884,1709032240618,-310.0,0.00019178,2]
[315432885,1709032240708,-2404.01,0.00019178,2]
[315432886,1709032240717,-3952.58,0.00019178,2]
[315432887,1709032240726,-501.22080587,0.00019178,2]
[315432888,1709032240735,-3161.62,0.00019178,2]
[315432889,1709032240744,-728.61,0.00019178,2]
[315432890,1709032240753,-1145.82,0.00019178,2]
[315432891,1709032240762,-500.0,0.00019178,2]
[315432892,1709032240771,-500.0,0.00019178,2]
[315432893,1709032240781,-500.0,0.00019178,2]
[315432894,1709032240791,-500.0,0.00019178,2]
[315432895,1709032240803,-694.82180753,0.00019178,2]
[315432896,1709032240812,-167.922832,0.00019178,2]
[315432897,1709032240821,-430.973088,0.00019178,4]
[315432898,1709032240830,-166.666666,0.00019178,2]
[315432899,1709032240840,-166.638562,0.00019178,2]
[315432900,1709032240850,-500.0,0.00019232,2]
[315432901,1709032240859,-500.0,0.00019287,2]
[315432902,1709032240868,-500.0,0.00019342,2]
[315432903,1709032240877,-767.2123362,0.00019352,2]
[315432904,1709032240886,-486.79569354,0.00019396,2]
[315432905,1709032240895,-500.0,0.00019451,2]
[315432906,1709032240904,-821.94,0.00019451,2]
[315432907,1709032240913,-821.94,0.00019451,2]
[315432908,1709032240922,-821.94,0.00019451,2]
[315432909,1709032240932,-500.0,0.00019452,2]
[315432910,1709032240942,-500.0,0.00019452,2]
[315432911,1709032240951,-500.0,0.00019452,2]
[315432912,1709032240960,-502.62605418,0.00019452,2]
[315432913,1709032240969,-500.0,0.00019452,2]
[315432914,1709032240979,-500.0,0.00019452,2]
[315432915,1709032240989,-500.0,0.00019452,2]
[315432916,1709032240999,-500.0,0.00019452,2]
[315432917,1709032241009,-1165.87,0.00019452,2]
[315432918,1709032241019,-500.0,0.00019452,2]
[315432919,1709032241029,-500.0,0.00019452,2]
[315432920,1709032241039,-500.0,0.00019452,2]
[315432921,1709032241051,-500.0,0.00019452,2]
[315432922,1709032241062,-235.52195681,0.00019452,2]
[315432923,1709032241073,-500.0,0.00019452,2]
[315432924,1709032241083,-500.0,0.00019452,2]
[315432925,1709032241093,-500.0,0.00019452,2]
[315432926,1709032241102,-500.0,0.00019452,2]
[315432927,1709032241112,-501.21301573,0.00019452,2]
[315432928,1709032241125,-1355.6,0.00019452,2]
[315432929,1709032241135,-205.02023893,0.00019452,2]
[315432930,1709032241145,-500.0,0.00019452,2]
[315432931,1709032241154,-336.01860419,0.00019452,2]
[315432932,1709032241164,-667.66,0.00019452,2]
[315432933,1709032241174,-500.0,0.00019452,2]
[315432934,1709032241183,-500.0,0.00019452,2]
[315432936,1709032241193,-548.95221423,0.00019452,2]
[315432937,1709032241202,-536.74,0.00019452,2]
[315432938,1709032241212,-749.07,0.00019452,2]
[315432940,1709032241222,-500.0,0.00019452,2]
[315432941,1709032241232,-500.0,0.00019452,2]
[315432942,1709032241242,-500.0,0.00019452,2]
[315432943,1709032241252,-500.0,0.00019452,2]
[315432944,1709032241263,-500.0,0.00019452,2]
[315432945,1709032241273,-500.0,0.00019452,2]
[315432946,1709032241283,-616.51,0.00019452,2]
[315432947,1709032241293,-500.0,0.00019452,2]
[315432949,1709032241306,-535.91,0.00019452,2]
[315432951,1709032241316,-500.0,0.00019452,2]
[315432953,1709032241329,-231.23191091,0.00019452,2]
[315432955,1709032241339,-500.0,0.00019452,2]
[315432956,1709032241349,-212.44196053,0.00019452,2]
[315432958,1709032241360,-1536.97,0.00019452,2]
[315432960,1709032241369,-521.78939552,0.00019452,2]
[315432962,1709032241379,-354.29,0.00019452,2]
[315432964,1709032241388,-395.16181797,0.00019452,2]
[315432965,1709032241398,-1519.07,0.00019452,2]
[315432967,1709032241408,-500.0,0.00019452,2]
[315432969,1709032241417,-500.0,0.00019452,2]
[315432971,1709032241427,-500.0,0.00019452,2]
[315432973,1709032241437,-500.0,0.00019452,2]
[315432974,1709032241447,-500.0,0.00019452,2]
[315432975,1709032241457,-500.0,0.00019452,2]
[315432976,1709032241467,-500.0,0.00019452,2]
[315432977,1709032241476,-500.0,0.00019452,2]
[315432978,1709032241485,-376.53396052,0.00019452,2]
[315432979,1709032241494,-501.19562815,0.00019452,2]
[315432980,1709032241503,-500.0,0.00019452,2]
[315432981,1709032241513,-907.1,0.00019452,2]
[315432982,1709032241522,-500.0,0.00019452,2]
[315432983,1709032241531,-500.0,0.00019452,2]
[315432984,1709032241541,-500.0,0.00019452,2]
[315432985,1709032241553,-500.0,0.00019452,2]
[315432986,1709032241562,-500.0,0.00019452,2]
[315432987,1709032241571,-501.3868524,0.00019452,2]
[315432988,1709032241580,-712.06,0.00019452,2]
[315432989,1709032241590,-500.0,0.00019452,2]
[315432990,1709032241601,-500.0,0.00019452,2]
[315432991,1709032241611,-809.97,0.00019452,2]
[315432992,1709032241621,-500.0,0.00019452,2]
[315432993,1709032241630,-500.0,0.00019452,2]
[315432994,1709032241639,-767.04,0.00019452,2]
[315432995,1709032241650,-2482.48,0.00019452,2]
[315432996,1709032241659,-1799.8,0.00019452,2]
[315432997,1709032241668,-500.0,0.00019452,2]
[315432998,1709032241677,-1268.67,0.00019452,2]
[315432999,1709032241687,-500.0,0.00019452,2]
[315433000,1709032241696,-1907.83,0.00019452,2]
[315433001,1709032241706,-500.0,0.00019452,2]
[315433002,1709032241715,-500.0,0.00019452,2]
[315433003,1709032241724,-500.0,0.00019452,2]